lending/lending_fUSD_20240908
["ID","MTS","AMOUNT","RATE_DAILY","PERIOD"]
[337539488,1725790237627,-10950.91264499,0.00015,2]
[337539489,1725790237676,-2286.65526696,0.00015,2]
[337539490,1725790237687,-279.62,0.00015,2]
[337539491,1725790237698,-7807.49218914,0.00015,2]
[337539492,1725790237710,-485.28526725,0.00015,2]
[337539493,1725790237720,-335.76750053,0.00015,2]
[337539494,1725790237774,-1018.81330539,0.00015,2]
[337539495,1725790237786,-14103.48224663,0.00015,2]
[337539496,1725790237798,-28686.90924801,0.00015,2]
[337539497,1725790237895,-903.83149778,0.00015,2]
[337539498,1725790237907,-1734.40541862,0.00015,2]
[337539499,1725790237918,-825.81989878,0.00015,2]
[337539500,1725790237930,-262.45006945,0.00015,2]
[337539501,1725790237940,-725.09263969,0.00015,2]
[337539591,1725790239598,-505.3046845,0.00015,2]
[337539592,1725790239701,-213463.34793062,0.00015,2]
[337539593,1725790239805,-641.30813083,0.00015,2]
[337539594,1725790239817,-521.59343028,0.00015,2]
[337539595,1725790239828,-453.16590618,0.00015,2]
[337539596,1725790239851,-292.92346155,0.00015,2]
[337539597,1725790239862,-2809.89847193,0.00015,2]
[337539599,1725790239887,-114406.08426881,0.00015,2]
[337539614,1725790242570,-11196.15973743,0.00015,2]
[337539619,1725790245929,-333.38614413,0.000147,2]
[337539621,1725790300412,750.0,0.00011,2]
[337539622,1725790573866,477.32,0.00011893,2]
[337539624,1725791103457,479.06,0.00011686,2]
[337539625,1725791115948,156.37,0.00010959,2]
[337539626,1725791129175,27067.58756105,0.000101,2]
[337539627,1725791129198,70552.41528006,0.000101,2]
[337539638,1725791431646,-554.04576987,0.00013,2]
[337539639,1725791431663,-245.95423013,0.00013,2]
[337539640,1725791431673,-2654.04576987,0.00013596,2]
[337539641,1725791431984,-303.4456781,0.00013596,2]
[337539642,1725791432017,-1457.13855203,0.00013596,2]
[337539643,1725791432027,-215.6387,0.00013619,2]
[337539644,1725791432037,-200.0,0.00013689,2]
[337539645,1725791432046,-250.0,0.00013693,2]
[337539646,1725791432056,-250.0,0.00013699,2]
[337539647,1725791432066,-354.15,0.00013733,2]
[337539648,1725791432077,-409.6,0.00013775,2]
[337539649,1725791432086,-200.0,0.00013815,2]
[337539650,1725791432095,-619.39,0.00013815,2]
[337539651,1725791432104,-590.4,0.00013848,2]
[337539652,1725791432114,-500.0,0.000139,5]
[337539653,1725791432125,-479.06,0.0001395,2]
[337539654,1725791432135,-5823.73,0.0001395,2]
[337539655,1725791432145,-670.63,0.0001395,2]
[337539656,1725791432155,-1000.0,0.00014,5]
[337539657,1725791432166,-1500.0,0.000141,5]
[337539658,1725791432179,-2000.0,0.000142,5]
[337539659,1725791432188,-2600.0,0.000143,5]
[337539660,1725791432197,-500.0,0.000144,5]
[337539661,1725791432206,-500.0,0.000145,5]
[337539662,1725791432216,-394.99218626,0.000146,2]
[337539663,1725791432226,-500.0,0.000146,5]
[337539664,1725791432236,-150.0,0.00014699,2]
[337539665,1725791432248,-824.46572146,0.000147,2]
[337539666,1725791432258,-500.0,0.000147,5]
[337539667,1725791432267,-222.0,0.0001474,2]
[337539668,1725791432276,-800.0,0.000148,5]
[337539669,1725791432285,-1133.5319,0.0001485,2]
[337539670,1725791432294,-5870.84009495,0.0001488,2]
[337539671,1725791432303,-507.9612,0.0001489,2]
[337539672,1725791432312,-196.281,0.0001489,2]
[337539673,1725791432321,-474.3567,0.0001489,2]
[337539674,1725791432330,-11061.4653,0.0001489,2]
[337539675,1725791432340,-690.0699,0.0001489,2]
[337539676,1725791432354,-701.0077,0.0001489,2]
[337539677,1725791432364,-1435.8697,0.0001489,2]
[337539678,1725791432373,-448.78205901,0.00014896,2]
[337539679,1725791432382,-448.78205901,0.00014896,2]
[337539680,1725791432392,-448.78205901,0.00014897,2]
[337539681,1725791432401,-448.78205901,0.00014897,2]
[337539682,1725791432410,-448.78205901,0.00014898,2]
[337539683,1725791432419,-448.78205901,0.00014898,2]
[337539684,1725791432428,-448.78205901,0.00014899,2]
[337539685,1725791432437,-448.78205901,0.00014899,2]
[337539686,1725791432446,-448.78205901,0.000149,2]
[337539687,1725791432456,-172.70431108,0.000149,2]
[337539688,1725791432465,-448.78205901,0.000149,2]
[337539689,1725791432474,-150.13794916,0.000149,2]
[337539690,1725791432484,-163.37894835,0.000149,2]
[337539691,1725791432492,-164.99535302,0.000149,2]
[337539692,1725791432502,-500.0,0.00014973,2]
[337539693,1725791432511,-449.87819565,0.00014973,2]
[337539694,1725791432520,-494.52,0.0001499,3]
[337539695,1725791432529,-151.5,0.0001499,2]
[337539696,1725791432539,-151.5,0.0001499,2]
[337539697,1725791432548,-151.5,0.0001499,2]
[337539698,1725791432557,-151.5,0.0001499,2]
[337539699,1725791432566,-155.11278528,0.00014996,2]
[337539700,1725791432575,-243.76045204,0.00014996,2]
[337539701,1725791432584,-76091.89542661,0.00014998,2]
[337539702,1725791432594,-500.0,0.00014999,2]
[337539703,1725791432603,-241.15802491,0.00014999,2]
[337539704,1725791432613,-516.0593091,0.00015,2]
[337539705,1725791432628,-232.9406909,0.00015,2]
[337539707,1725791432640,-532.34952962,0.00015,2]
[337539714,1725791432689,-448.12958754,0.00015,2]
[337539716,1725791432703,-1500.7981108,0.00015,2]
[337539726,1725791437607,-290.305015,0.00015,2]
[337539728,1725791437620,-882.31371769,0.00015,2]
[337539729,1725791437846,-1109.76612253,0.00015,2]
[337539730,1725791437859,-1477.32384419,0.00015,2]
[337539731,1725791437870,-1173.98706814,0.00015,2]
[337539732,1725791437882,-3351.12782822,0.00015,2]
[337539733,1725791437894,-2082.2186989,0.00015,2]
[337539734,1725791437905,-2583.58712451,0.00015,2]
[337539735,1725791437916,-2248.25259335,0.00015,2]
[337539736,1725791437928,-8284.18896675,0.00015,2]
[337539737,1725791437940,-3212.85344129,0.00015,2]
[337539738,1725791437951,-479.96246766,0.00015,2]
[337539739,1725791437973,-13816.91598433,0.00015,2]
[337539740,1725791437986,-667.76472037,0.00015,2]
[337539741,1725791437997,-326.82220256,0.00015,2]
[337539745,1725791440366,-6032.55630432,0.00015,2]
[337539746,1725791440378,-1024.23401761,0.00015,2]
[337539747,1725791440389,-689.38305295,0.00015,2]
[337539748,1725791440439,-465.54066994,0.00015,2]
[337539749,1725791440472,-110524.25498921,0.00015,2]
[337539750,1725791440483,-39982.21591552,0.00015,2]
[337539751,1725791440495,-35052.37414471,0.00015,2]
[337539752,1725791440504,-184868.87320856,0.00015,2]
[337539753,1725791440515,-1323.72601942,0.00015,2]
[337539754,1725791440527,-33965.84923624,0.00015,2]
[337539769,1725791442622,-744.5,0.0001393,2]
[337539770,1725791442639,-353.4100011,0.0001393,2]
[337539771,1725791442751,-4557.16659618,0.0001393,2]
[337539774,1725791443254,-3637.2760694,0.0001393,2]
[337539775,1725791443263,-1721.73707638,0.000147,2]
[337539776,1725791443272,-256.33991671,0.00014799,2]
[337539777,1725791443282,-675.0,0.00015,2]
[337539778,1725791443291,-3231.16796507,0.00015,2]
[337539779,1725791443324,-7379.75997315,0.00015,2]
[337539780,1725791443336,-7737.6707536,0.00015,2]
[337539781,1725791443348,-3898.14041674,0.00015,2]
[337539782,1725791443359,-302.0,0.00015,2]
[337539787,1725791445801,-565.134902,0.00015,2]
[337539788,1725791445869,-47403.55364254,0.00015,2]
[337539789,1725791445881,-2470.79766762,0.00015,2]
[337539790,1725791445892,-263.86078829,0.00015,2]
[337539791,1725791446001,-5948.71108862,0.00015,2]
[337539792,1725791446091,-949.65,0.00015,2]
[337539793,1725791446107,-2304.74063292,0.00015,2]
[337539796,1725791712915,-481.9,0.00012173,2]
[337539797,1725792106084,750.0,0.00011,2]
[337539798,1725792115851,155.82,0.00010959,2]
[337539799,1725792150100,-171.917184,0.00012173,2]
[337539800,1725792342204,481.26,0.00011518,2]
[337539801,1725792483426,-171.917184,0.00012173,2]
[337539802,1725792489826,-370.165632,0.00012173,2]
[337539803,1725792611946,198.71,0.00010959,2]
[337539808,1725792631912,-171.917184,0.000129,2]
[337539809,1725792631922,-175.48381592,0.00013,2]
[337539810,1725792631933,-624.51618408,0.00013,2]
[337539811,1725792631942,-250.0,0.00013276,2]
[337539812,1725792631952,-250.0,0.00013289,2]
[337539813,1725792631961,-603.88000457,0.00013315,2]
[337539814,1725792631973,-396.11999543,0.00013315,2]
[337539815,1725792631984,-250.0,0.00013347,2]
[337539816,1725792631993,-198.21,0.0001335,2]
[337539817,1725792632003,-177.07,0.00013387,2]
[337539818,1725792632013,-243.41,0.00013401,2]
[337539819,1725792632024,-200.0,0.00013445,2]
[337539820,1725792632035,-94.39213123,0.00013549,2]
[337539821,1725792632048,-1218.07657921,0.00013549,2]
[337539822,1725792632060,-538.88,0.00013549,2]
[337539823,1725792632092,-553.45058183,0.00013549,2]
[337539824,1725792632103,-3839.44275338,0.00013549,2]
[337539825,1725792632113,-1070.57254291,0.00013549,2]
[337539827,1725792632124,-5776.51541144,0.00013549,2]
[337539829,1725792632134,-213.85,0.00013586,2]
[337539831,1725792632143,-383.79,0.00013586,2]
[337539832,1725792632152,-499.99,0.00013586,2]
[337539833,1725792632161,-481.26,0.00013782,2]
[337539834,1725792632170,-171.88,0.00013828,2]
[337539835,1725792632179,-8493.38531792,0.0001383,2]
[337539836,1725792632190,-324.2343219,0.0001383,2]
[337539837,1725792632213,-5937.10616018,0.0001383,2]
[337539838,1725792632223,-707.64733332,0.0001393,2]
[337539839,1725792632232,-500.0,0.00014,2]
[337539840,1725792632241,-500.0,0.00014,2]
[337539841,1725792632251,-229.37,0.00014,2]
[337539842,1725792632260,-500.0,0.00014,2]
[337539843,1725792632269,-474.11,0.00014,2]
[337539844,1725792632278,-200.34805115,0.00014,2]
[337539845,1725792632288,-360.0,0.00014021,2]
[337539846,1725792632297,-843.8,0.00014141,2]
[337539847,1725792632307,-258.6,0.00014141,2]
[337539848,1725792632316,-260.6636,0.0001459,2]
[337539849,1725792632327,-1130.0,0.00014591,2]
[337539850,1725792632337,-150.0,0.00014593,2]
[337539851,1725792632347,-171.85912976,0.00014601,2]
[337539852,1725792632359,-150.13794912,0.00014605,2]
[337539853,1725792632370,-333.38614413,0.00014605,2]
[337539854,1725792632379,-164.67766966,0.00014605,2]
[337539855,1725792632390,-283.94070657,0.00014673,2]
[337539856,1725792632399,-160.12286801,0.00014673,2]
[337539857,1725792632410,-170.7,0.0001469,3]
[337539858,1725792632419,-512.12,0.0001469,3]
[337539859,1725792632429,-151.44,0.0001469,2]
[337539860,1725792632439,-151.44,0.0001469,2]
[337539861,1725792632451,-151.44,0.0001469,2]
[337539862,1725792632460,-151.44,0.0001469,2]
[337539863,1725792632470,-151.44,0.0001469,2]
[337539864,1725792632480,-500.0,0.00014699,2]
[337539865,1725792632490,-500.0,0.00014699,2]
[337539866,1725792632500,-220.95147539,0.00014699,2]
[337539867,1725792632510,-1298.7,0.000147,2]
[337539868,1725792632520,-130378.97444488,0.000147,2]
[337539869,1725792632530,-93582.11876035,0.000147,2]
[337539870,1725792632542,-41444.8839682,0.000147,2]
[337539871,1725792632555,-1112.20431424,0.000147,2]
[337539872,1725792632571,-6510.898581,0.000147,2]
[337539873,1725792637829,-329.5347003,0.000147,2]
[337539874,1725792637841,-4350.35176722,0.000147,2]
[337539876,1725792637853,-1621.42357983,0.000147,2]
[337539879,1725792637940,-1604.51630884,0.000147,2]
[337539880,1725792638208,-6833.76169356,0.000147,2]
[337539881,1725792638220,-6050.72207205,0.000147,2]
[337539884,1725792639965,-3167.22359744,0.000147,2]
[337539885,1725792639999,-628.85,0.000147,2]
[337539886,1725792640129,-5896444.78725471,0.000147,2]
[337539887,1725792640140,-88814.39773596,0.000147,2]
[337539888,1725792640169,-3366.95485208,0.000147,2]
[337539889,1725792640181,-1679.4454806,0.000147,2]
[337539890,1725792640192,-1440.51765176,0.000147,2]
[337539921,1725792846593,455.41,0.00011875,2]
[337539924,1725793116607,195.82,0.00010959,2]
[337539925,1725793323347,452.69,0.00011686,2]
[337539956,1725793832006,-291.69524508,0.00013216,2]
[337539957,1725793832015,-250.0,0.00013468,2]
[337539958,1725793832025,-288.0,0.00013529,2]
[337539959,1725793832035,-800.0,0.00013554,2]
[337539960,1725793832044,-250.0,0.00013621,2]
[337539961,1725793832054,-167.35,0.00013622,2]
[337539962,1725793832065,-186.66,0.0001376,2]
[337539963,1725793832074,-200.0,0.00013765,2]
[337539964,1725793832084,-1000.0,0.000139,5]
[337539965,1725793832093,-452.69,0.0001395,2]
[337539966,1725793832103,-724.88528109,0.00014,2]
[337539967,1725793832112,-2100.0,0.00014,5]
[337539968,1725793832122,-3200.0,0.000141,5]
[337539969,1725793832131,-300.0,0.00014199,2]
[337539970,1725793832140,-537.63,0.000142,2]
[337539971,1725793832150,-4300.0,0.000142,5]
[337539972,1725793832159,-5400.0,0.000143,5]
[337539973,1725793832169,-408.07383063,0.00014324,2]
[337539974,1725793832178,-1000.0,0.000144,5]
[337539975,1725793832187,-667.3481192,0.000145,5]
[337539976,1725793838324,-167.35,0.0001382,2]
[337539977,1725793838333,-332.6518808,0.000145,5]
[337539978,1725793838342,-3463.97,0.00014504,2]
[337539979,1725793838351,-13360.61,0.00014504,2]
[337539980,1725793838360,-21718.38,0.00014504,2]
[337539981,1725793838369,-166.5736,0.0001458,2]
[337539982,1725793838378,-1259.9875,0.0001459,2]
[337539983,1725793838388,-35091.6249,0.0001459,2]
[337539984,1725793838397,-1307.96,0.0001459,2]
[337539985,1725793838405,-192.7151612,0.000146,2]
[337539986,1725793838416,-1000.0,0.000146,2]
[337539987,1725793838425,-1000.0,0.000146,5]
[337539988,1725793838435,-225.26616443,0.00014605,2]
[337539989,1725793838444,-225.26616441,0.00014647,2]
[337539990,1725793838453,-341.4,0.0001466,3]
[337539991,1725793838462,-192946.058229,0.0001467,3]
[337539993,1725793838472,-79359.0410055,0.0001467,3]
[337539995,1725793838481,-151.44,0.0001467,2]
[337539997,1725793838491,-160.22851898,0.00014673,2]
[337539998,1725793838500,-500.0,0.00014673,2]
[337539999,1725793838509,-265521.93454641,0.0001468,2]
[337540001,1725793840378,-1126.77572765,0.0001468,2]
[337540020,1725793911907,750.0,0.00011,2]
[337540021,1725793913028,800.0,0.00013,2]
[337540022,1725794018508,445.52,0.00011745,2]
[337540023,1725794353868,156.39,0.00010959,2]
[337540024,1725794539131,440.87,0.00011319,2]
[337540025,1725794708459,11758.71,0.00013,2]
[337540026,1725794822942,-1300.0,0.000128,4]
[337540027,1725794826529,-2700.0,0.000129,4]
[337540028,1725794867566,-4629.12,0.000129,2]
[337540029,1725794877010,155.82,0.00010959,2]
[337540031,1725794931547,-259.49,0.0001299,2]
[337540032,1725794931575,-259.49,0.0001299,2]
[337540033,1725794931602,-259.49,0.0001299,2]
[337540035,1725794931630,-1001.92167631,0.00012999,2]
[337540037,1725794931656,-150.0,0.00012999,2]
[337540039,1725794931684,-300.0,0.00012999,2]
[337540041,1725794931716,-5620.95067208,0.00013,2]
[337540042,1725794931780,-5183.26150862,0.00013,2]
[337540045,1725794931899,-7851.34234839,0.00013,2]
[337540046,1725794956986,-3445.83168538,0.00013,2]
[337540047,1725795001517,500.0,0.00011164,2]
[337540048,1725795005673,-500.0,0.00012534,2]
[337540049,1725795022095,436.08,0.00011233,2]
[337540050,1725795023273,500.0,8.22e-05,2]
[337540051,1725795024574,1400.0,8.22e-05,2]
[337540053,1725795024847,500.0,9.59e-05,2]
[337540054,1725795026172,1400.0,9.59e-05,2]
[337540055,1725795026455,500.0,0.0001096,2]
[337540056,1725795027770,1400.0,0.0001096,2]
[337540059,1725795032157,-429.8742519,0.0001233,2]
[337540060,1725795032168,-70.1257481,0.0001233,2]
[337540061,1725795032179,-327.32095105,0.0001233,2]
[337540063,1725795032202,-1072.67904895,0.0001233,2]
[337540066,1725795032211,-151.45,0.0001299,2]
[337540067,1725795032221,-76.86095105,0.00013,2]
[337540068,1725795032266,-621.77146932,0.00013,2]
[337540069,1725795032278,-1120.3923776,0.00013,2]
[337540070,1725795032289,-450.25,0.00013,2]
[337540071,1725795032301,-9852.85409,0.00013,2]
[337540072,1725795032374,-270.54903608,0.00013,2]
[337540073,1725795032385,-1050.9810923,0.00013,2]
[337540074,1725795032396,-378.25609224,0.00013,2]
[337540088,1725795038206,-961.74831633,0.00013,2]
[337540089,1725795038218,-10980.70428152,0.00013,2]
[337540090,1725795038229,-107361.96828364,0.00013,2]
[337540091,1725795038239,-1180.52477935,0.00013,2]
[337540092,1725795038250,-666.77284336,0.00013,2]
[337540093,1725795038261,-6554.30971465,0.00013,2]
[337540094,1725795038272,-1751.89351682,0.00013,2]
[337540095,1725795038294,-1378.82633216,0.00013,2]
[337540096,1725795038312,-375.97713345,0.00013,2]
[337540097,1725795038323,-3400.1435629,0.00013,2]
[337540098,1725795038338,-1000.0,0.00013,2]
[337540099,1725795038360,-1599.21665465,0.00013,2]
[337540100,1725795038371,-294.57948905,0.00013,2]
[337540101,1725795038382,-1271.84740894,0.00013,2]
[337540102,1725795038393,-7225.22519846,0.00013,2]
[337540103,1725795038404,-1285.23570454,0.00013,2]
[337540104,1725795038419,-24597.19794807,0.00013,2]
[337540105,1725795038438,-410.82807031,0.00013,2]
[337540106,1725795038449,-451.03378972,0.00013,2]
[337540107,1725795038526,-445.42957939,0.00013,2]
[337540108,1725795038538,-535.48515233,0.00013,2]
[337540112,1725795040279,-650.0,0.00013,2]
[337540113,1725795040291,-1368.05667035,0.00013,2]
[337540114,1725795040303,-674.47609604,0.00013,2]
[337540115,1725795040315,-3537.73874138,0.00013,2]
[337540116,1725795040326,-1275.2531778,0.00013,2]
[337540117,1725795040341,-1748.56626615,0.00013,2]
[337540118,1725795040353,-1467.8621135,0.00013,2]
[337540119,1725795040365,-1333.31807868,0.00013,2]
[337540120,1725795040377,-7154.89491074,0.00013,2]
[337540121,1725795040423,-615.61579363,0.00013,2]
[337540167,1725795041087,-1131.59228596,0.00013,2]
[337540169,1725795041099,-730.55933782,0.00013,2]
[337540171,1725795041110,-2025.26791969,0.00013,2]
[337540173,1725795041121,-6396.77599098,0.00013,2]
[337540178,1725795041154,-1206.83348292,0.00013,2]
[337540180,1725795041165,-78079.80296049,0.00013,2]
[337540182,1725795041176,-562.53248212,0.00013,2]
[337540184,1725795041187,-500.0,0.00013,2]
[337540187,1725795041203,-1259.96086,0.00013,2]
[337540189,1725795041215,-2135.25572294,0.00013,2]
[337540191,1725795041227,-375.43823511,0.00013,2]
[337540193,1725795041239,-1087.46169813,0.00013,2]
[337540196,1725795041251,-2784.87048622,0.00013,2]
[337540198,1725795041262,-285.75251114,0.00013,2]
[337540200,1725795041274,-722.9693,0.00013,2]
[337540202,1725795041286,-1406.24161578,0.00013,2]
[337540205,1725795041298,-495.55389865,0.00013,2]
[337540211,1725795041347,-268572.65841669,0.00013,2]
[337540213,1725795041359,-28803.56104091,0.00013,2]
[337540381,1725795043097,-378.15436392,0.00013,2]
[337540388,1725795043127,-1727.45592964,0.00013,2]
[337540392,1725795043138,-1535.85323252,0.00013,2]
[337540397,1725795043160,-7365.16641705,0.00013,2]
[337540462,1725795043818,-210569.95971857,0.00013,2]
[337540464,1725795043837,-56162.05529899,0.00013,2]
[337540465,1725795043856,-6723.34743954,0.00013,2]
[337540466,1725795043875,-5867.91004832,0.00013,2]
[337540467,1725795043894,-714.36,0.00013,2]
[337540468,1725795043914,-2325.34922941,0.00013,2]
[337540699,1725795046263,-308.1,0.00013,2]
[337540712,1725795046388,-355.99679615,0.00013,2]
[337540753,1725795058066,-3390.0703,0.000129,2]
[337540754,1725795392060,-311.00026652,0.000129,2]
[337540755,1725795479803,188.77,0.00010959,2]
[337540756,1725795555698,999.99999994,0.00026997,120]
[337540758,1725795586174,-1247.58017574,0.000129,2]
[337540759,1725795590889,-348.0,0.0001265,2]
[337540760,1725795592098,-348.0,0.0001278,2]
[337540761,1725795608178,-161.07,0.0001289,2]
[337540762,1725795619632,431.54,0.00010975,2]
[337540764,1725795639180,-250.0,0.00012891,2]
[337540765,1725795682816,-415.41238954,0.00012672,2]
[337540766,1725795684381,-2523.05123,0.0001287,2]
[337540767,1725795717821,750.0,0.00011,2]
[337540768,1725795840593,-168.94962336,0.000129,2]
[337540769,1725796009947,195.82,0.00010959,2]
[337540770,1725796038092,-179.05037664,0.000129,2]
[337540771,1725796038115,-168.94962336,0.000129,2]
[337540772,1725796038138,-774.82215813,0.000129,2]
[337540773,1725796139210,423.76,0.00010998,2]
[337540774,1725796150037,-250.0,0.00012899,2]
[337540780,1725796232482,-415.41238954,0.00012678,2]
[337540781,1725796232492,-348.0,0.000129,2]
[337540782,1725796232502,-230.4,0.00012926,2]
[337540783,1725796232511,-158.22,0.00012957,2]
[337540784,1725796232520,-500.0,0.00012973,2]
[337540785,1725796232531,-194.76,0.00012979,2]
[337540786,1725796232540,-151.23,0.0001299,2]
[337540787,1725796232549,-164.82,0.00012998,2]
[337540788,1725796232559,-300.0,0.00012998,2]
[337540789,1725796232568,-2531.41499188,0.00012999,2]
[337540790,1725796232591,-481.54488461,0.00012999,2]
[337540791,1725796232603,-1072.92778133,0.00012999,2]
[337540792,1725796232614,-457.01764906,0.00012999,2]
[337540793,1725796232625,-6235.75192426,0.00012999,2]
[337540794,1725796232659,-4505.91072977,0.00012999,2]
[337540795,1725796232670,-150.0,0.00012999,2]
[337540796,1725796232680,-171447.27734343,0.00013,2]
[337540797,1725796232692,-12254.46978135,0.00013,2]
[337540799,1725796232708,-16836.97908139,0.00013,2]
[337540808,1725796232900,-348.26422483,0.00013,2]
[337540816,1725796238572,-416.8955371,0.00012973,2]
[337540817,1725796238582,-672.15655143,0.00012973,2]
[337540818,1725796238608,-14503.83174538,0.00012973,2]
[337540819,1725796238618,-162.8,0.0001299,2]
[337540820,1725796238628,-162.8,0.0001299,2]
[337540821,1725796238638,-162.8,0.0001299,2]
[337540822,1725796238647,-326323.1986818,0.00013,2]
[337540823,1725796238657,-800.0,0.00013,2]
[337540824,1725796238668,-18655.5011216,0.00013014,2]
[337540825,1725796238678,-1000.0,0.00013023,2]
[337540827,1725796238687,-348.0,0.0001303,2]
[337540829,1725796238698,-459.93,0.0001303,2]
[337540830,1725796238707,-1122.82215809,0.00013122,2]
[337540832,1725796238716,-186.67,0.00013147,2]
[337540834,1725796238727,-348.0,0.0001315,2]
[337540836,1725796238737,-168.9496233,0.00013186,2]
[337540838,1725796238747,-423.76,0.00013262,2]
[337540839,1725796238755,-348.0,0.0001327,2]
[337540841,1725796238764,-1122.82215809,0.00013344,2]
[337540843,1725796238774,-348.0,0.000134,2]
[337540845,1725796238783,-150.0,0.000134,2]
[337540847,1725796238793,-150.0,0.000134,2]
[337540849,1725796238802,-150.0,0.000134,2]
[337540851,1725796238811,-150.0,0.000134,2]
[337540853,1725796238820,-155.98,0.00013428,2]
[337540855,1725796238830,-26919.36,0.00013428,2]
[337540857,1725796238840,-155.98,0.00013434,2]
[337540859,1725796238850,-155.98,0.00013439,2]
[337540861,1725796238859,-155.98,0.00013445,2]
[337540862,1725796238869,-155.98,0.00013451,2]
[337540863,1725796238878,-155.98,0.00013456,2]
[337540864,1725796238887,-155.98,0.00013462,2]
[337540865,1725796238897,-155.98,0.00013467,2]
[337540866,1725796238906,-168.9496233,0.00013471,2]
[337540867,1725796238916,-155.98,0.00013473,2]
[337540868,1725796238925,-155.98,0.00013479,2]
[337540869,1725796238933,-155.98,0.00013484,2]
[337540870,1725796238942,-155.98,0.0001349,2]
[337540871,1725796238951,-155.98,0.00013495,2]
[337540872,1725796238961,-348.0,0.0001352,2]
[337540873,1725796238971,-1122.82215809,0.00013567,2]
[337540874,1725796238980,-348.0,0.0001364,2]
[337540875,1725796238990,-168.9496233,0.00013757,2]
[337540877,1725796239000,-348.0,0.0001377,2]
[337540879,1725796239011,-1122.82215809,0.00013789,2]
[337540881,1725796239020,-348.0,0.0001389,2]
[337540883,1725796239029,-1100.0,0.000139,5]
[337540885,1725796239038,-14101.2249853,0.00013928,3]
[337540886,1725796239048,-8772.22601269,0.00013938,2]
[337540888,1725796239058,-201.0,0.0001396,2]
[337540890,1725796239067,-500.0,0.00014,2]
[337540892,1725796239076,-500.0,0.00014,2]
[337540894,1725796239086,-500.0,0.00014,2]
[337540896,1725796239096,-500.0,0.00014,2]
[337540898,1725796239105,-500.0,0.00014,2]
[337540899,1725796239120,-522.37,0.00014,2]
[337540901,1725796239129,-500.0,0.00014,2]
[337540903,1725796239139,-553.2,0.00014,2]
[337540905,1725796239149,-2300.0,0.00014,5]
[337540907,1725796239158,-348.0,0.0001401,2]
[337540909,1725796239168,-1122.82215809,0.00014011,2]
[337540912,1725796239178,-201.0,0.0001403,2]
[337540914,1725796239188,-168.9496233,0.00014043,2]
[337540915,1725796239198,-2523.05124,0.0001405,2]
[337540917,1725796239208,-201.0,0.0001409,2]
[337540919,1725796239218,-3400.0,0.000141,5]
[337540921,1725796239228,-255.0,0.00014104,2]
[337540923,1725796239237,-201.0,0.0001414,2]
[337540925,1725796239246,-348.0,0.0001414,2]
[337540927,1725796239256,-201.0,0.0001416,2]
[337540929,1725796239265,-14101.2249853,0.0001418,3]
[337540931,1725796239275,-23830.31703739,0.0001419,2]
[337540932,1725796239284,-150.0,0.00014192,2]
[337540934,1725796239293,-150.0,0.00014192,2]
[337540936,1725796239303,-150.0,0.00014192,2]
[337540937,1725796239313,-150.0,0.00014192,2]
[337540938,1725796239322,-150.0,0.00014192,2]
[337540939,1725796239332,-4600.0,0.000142,5]
[337540940,1725796239341,-201.0,0.0001422,2]
[337540941,1725796239351,-1122.82215809,0.00014233,2]
[337540942,1725796239360,-776.22869287,0.0001425,2]
[337540943,1725796239370,-201.0,0.0001426,2]
[337540944,1725796239379,-348.0,0.0001426,2]